fUSD/lending_fUSD_20250622
["ID","MTS","AMOUNT","RATE_DAILY","PERIOD"]
[367012508,1750618027151,-1013.06398968,0.00041917,120]
[367012511,1750618027178,-586.04141797,0.00041917,120]
[367012513,1750618027206,-1264.17395,0.00041917,120]
[367012515,1750618027234,-558.11369273,0.00041917,120]
[367012518,1750618027263,-589.71761241,0.00041917,120]
[367012520,1750618027292,-677.12298099,0.00041917,120]
[367012523,1750618027322,-987.00606949,0.00041917,120]
[367012525,1750618027351,-1079.75239998,0.00041917,120]
[367012528,1750618027379,-1159.68471601,0.00041917,120]
[367012530,1750618027410,-1154.28476788,0.00041917,120]
[367012533,1750618027439,-1056.93780388,0.00041917,120]
[367012535,1750618027469,-1558.38596643,0.00041917,120]
[367012537,1750618027501,-1634.04841395,0.00041917,120]
[367012540,1750618027535,-1212.44890947,0.00041917,120]
[367012542,1750618027565,-615.52062461,0.00041917,120]
[367012545,1750618027601,-2115.25859523,0.00041917,120]
[367012548,1750618027633,-632.76289893,0.00041917,120]
[367012550,1750618027667,-1267.4578147,0.00041917,120]
[367012553,1750618027700,-2328.72130327,0.00041917,120]
[367012556,1750618027733,-1887.41917666,0.00041917,120]
[367012558,1750618027767,-1520.68358149,0.00041917,120]
[367012561,1750618027801,-857.81974346,0.00041917,120]
[367012563,1750618027836,-1699.30661322,0.00041917,120]
[367012566,1750618027868,-1408.73201952,0.00041917,120]
[367012568,1750618027899,-778.77227074,0.00041917,120]
[367012571,1750618027930,-822.44299123,0.00041917,120]
[367012573,1750618027961,-862.06026003,0.00041917,120]
[367012576,1750618027993,-2514.96394045,0.00041917,120]
[367012578,1750618028025,-884.60208866,0.00041917,120]
[367012581,1750618028059,-1444.58703533,0.00041917,120]
[367012583,1750618028092,-1704.53555893,0.00041917,120]
[367012586,1750618028125,-829.87767457,0.00041917,120]
[367012589,1750618028157,-2130.05760577,0.00041917,120]
[367012591,1750618028189,-974.36588284,0.00041917,120]
[367012594,1750618028225,-3418.89320708,0.00041917,120]
[367012596,1750618028257,-446.15911051,0.00041917,120]
[367012599,1750618028290,-906.19701777,0.00041917,120]
[367012602,1750618028325,-2036.78039247,0.00041917,120]
[367012604,1750618028358,-3366.15808656,0.00041917,120]
[367012607,1750618028390,-493.53989673,0.00041917,120]
[367012609,1750618028424,-1089.28694749,0.00041917,120]
[367012612,1750618028461,-2434.11700488,0.00041917,120]
[367012614,1750618028495,-2885.17608115,0.00041917,120]
[367012617,1750618028530,-537.95044556,0.00041917,120]
[367012619,1750618028567,-975.18,0.00041917,120]
[367012622,1750618028602,-1462.30835402,0.00041917,120]
[367012625,1750618028641,-2797.2412521,0.00041917,120]
[367012627,1750618028677,-1316.23683175,0.00041917,120]
[367012630,1750618028713,-724.82780959,0.00041917,120]
[367012633,1750618028749,-985.12331843,0.00041917,120]
[367012635,1750618028784,-1585.26433652,0.00041917,120]
[367012638,1750618028820,-913.43808917,0.00041917,120]
[367012641,1750618028856,-716.35805253,0.00041917,120]
[367012643,1750618028891,-610.5048498,0.00041917,120]
[367012646,1750618028927,-2471.39567472,0.00041917,120]
[367012648,1750618028962,-1139.15,0.00041917,120]
[367012651,1750618028996,-1896.82618916,0.00041917,120]
[367012654,1750618029030,-2772.67689427,0.00041917,120]
[367012656,1750618029065,-3136.28640331,0.00041917,120]
[367012659,1750618029100,-1370.08939494,0.00041917,120]
[367012662,1750618029135,-1569.67299915,0.00041917,120]
[367012664,1750618029170,-1255.62236589,0.00041917,120]
[367012667,1750618029203,-2414.86854128,0.00041917,120]
[367012670,1750618029237,-1655.77841586,0.00041917,120]
[367012672,1750618029271,-1997.58976472,0.00041917,120]
[367012675,1750618029306,-1067.4207896,0.00041917,120]
[367012678,1750618029342,-561.31498645,0.00041917,120]
[367012680,1750618029377,-742.87517106,0.00041917,120]
[367012683,1750618029412,-660.75544337,0.00041917,120]
[367012686,1750618029445,-592.09631239,0.00041917,120]
[367012688,1750618029486,-962.23412052,0.00041917,120]
[367012691,1750618029522,-633.23236581,0.00041917,120]
[367012694,1750618029560,-349.16541976,0.00041917,120]
[367012715,1750618030026,-735.4548512,0.00041917,120]
[367012716,1750618030063,-1201.60954753,0.00041917,120]
[367012717,1750618030096,-812.20188129,0.00041917,120]
[367012718,1750618030129,-2268.15719536,0.00041917,120]
[367012719,1750618030161,-693.73671677,0.00041917,120]
[367012720,1750618030193,-546.38758008,0.00041917,120]
[367012723,1750618030224,-537.71886053,0.00041917,120]
[367012725,1750618030255,-2017.52542685,0.00041917,120]
[367012728,1750618030288,-681.3914696,0.00041917,120]
[367012730,1750618030320,-1033.15036207,0.00041917,120]
[367012733,1750618030352,-2395.46324545,0.00041917,120]
[367012735,1750618030383,-1957.31768423,0.00041917,120]
[367012737,1750618030415,-2331.77152487,0.00041917,120]
[367012740,1750618030448,-758.46626919,0.00041917,120]
[367012743,1750618030485,-1317.04922907,0.00041917,120]
[367012745,1750618030519,-656.33040752,0.00041917,120]
[367012748,1750618030553,-1552.92715769,0.00041917,120]
[367012750,1750618030585,-2192.73548929,0.00041917,120]
[367012753,1750618030619,-923.22369845,0.00041917,120]
[367012755,1750618030651,-690.69259862,0.00041917,120]
[367012758,1750618030684,-2557.87755404,0.00041917,120]
[367012760,1750618030720,-1278.54091392,0.00041917,120]
[367012763,1750618030754,-882.43844451,0.00041917,120]
[367012766,1750618030791,-2592.95,0.00041917,120]
[367012768,1750618030824,-1777.65350057,0.00041917,120]
[367012771,1750618030858,-2455.32185313,0.00041917,120]
[367012773,1750618030891,-2666.61808609,0.00041917,120]
[367012776,1750618030924,-684.53422581,0.00041917,120]
[367012779,1750618030959,-1987.74671125,0.00041917,120]
[367012781,1750618030992,-1090.56911441,0.00041917,120]
[367012782,1750618031025,-1011.07833672,0.00041917,120]
[367012783,1750618031058,-959.95924389,0.00041917,120]
[367012784,1750618031091,-1971.91,0.00041917,120]
[367012785,1750618031125,-559.49272791,0.00041917,120]
[367012786,1750618031157,-3560.8622717,0.00041917,120]
[367012787,1750618031189,-778.14252236,0.00041917,120]
[367012788,1750618031221,-517.38842279,0.00041917,120]
[367012789,1750618031254,-1951.21001183,0.00041917,120]
[367012790,1750618031287,-568.35429329,0.00041917,120]
[367012791,1750618031322,-958.17235369,0.00041917,120]
[367012792,1750618031354,-849.68205368,0.00041917,120]
[367012793,1750618031387,-440.99763459,0.00041917,120]
[367012794,1750618031421,-1399.41801337,0.00041917,120]
[367012795,1750618031456,-1077.0135756,0.00041917,120]
[367012796,1750618031493,-2066.00744666,0.00041917,120]
[367012797,1750618031530,-1949.84343274,0.00041917,120]
[367012798,1750618031565,-2457.93420808,0.00041917,120]
[367012799,1750618031599,-1706.68328223,0.00041917,120]
[367012800,1750618031635,-1601.67,0.00041917,120]
[367012801,1750618031669,-2308.11870909,0.00041917,120]
[367012802,1750618031704,-1118.10237644,0.00041917,120]
[367012803,1750618031738,-1746.77334337,0.00041917,120]
[367012804,1750618031770,-1923.67527901,0.00041917,120]
[367012805,1750618031803,-1348.22209872,0.00041917,120]
[367012806,1750618031836,-752.22910538,0.00041917,120]
[367012807,1750618031868,-1794.91729367,0.00041917,120]
[367012808,1750618031900,-512.71132913,0.00041917,120]
[367012809,1750618031932,-5010.14934679,0.00041917,120]
[367012810,1750618031965,-898.85,0.00041917,120]
[367012811,1750618031996,-1179.02229305,0.00041917,120]
[367012812,1750618032028,-897.85220046,0.00041917,120]
[367012813,1750618032060,-809.56603582,0.00041917,120]
[367012814,1750618032092,-2710.88368884,0.00041917,120]
[367012815,1750618032124,-577.33365328,0.00041917,60]
[367012816,1750618032155,-5959.33146245,0.00041917,120]
[367012817,1750618032185,-908.76998703,0.00041917,120]
[367012818,1750618032217,-1462.39886246,0.00041917,120]
[367012819,1750618032249,-955.00015177,0.00041917,120]
[367012820,1750618032283,-11850.21718639,0.00041917,120]
[367012821,1750618032317,-2763.33977833,0.00041917,120]
[367012822,1750618032348,-1705.70523158,0.00041917,120]
[367012823,1750618032380,-780.03505792,0.00041917,120]
[367012824,1750618032499,-696.97127041,0.00041917,120]
[367012825,1750618032533,-961.29739265,0.00041917,120]
[367012826,1750618032568,-1581.15957436,0.00041917,120]
[367012827,1750618032601,-1647.13157155,0.00041917,120]
[367012828,1750618032634,-1551.09836126,0.00041917,120]
[367012829,1750618032668,-577.11276622,0.00041917,120]
[367012830,1750618032703,-2284.20637997,0.00041917,120]
[367012831,1750618032736,-14198.70615932,0.00041917,120]
[367012832,1750618032771,-4637.81891734,0.00041917,120]
[367012833,1750618032804,-970.24692529,0.00041917,120]
[367012834,1750618032840,-560.98160421,0.00041917,120]
[367012835,1750618032878,-1063.41559484,0.00041917,120]
[367012836,1750618032909,-2428.6956582,0.00041917,120]
[367012837,1750618032940,-768.12745218,0.00041917,120]
[367012838,1750618032971,-954.31316095,0.00041917,120]
[367012839,1750618033002,-703.13308491,0.00041917,120]
[367012840,1750618033032,-1532.6421663,0.00041917,120]
[367012841,1750618033064,-1105.88497693,0.00041917,120]
[367012842,1750618033095,-1991.31770019,0.00041917,120]
[367012843,1750618033124,-1075.26946566,0.00041917,120]
[367012844,1750618033153,-2560.09,0.00041917,120]
[367012846,1750618033183,-2054.52,0.00041917,120]
[367012848,1750618033211,-678.08667236,0.00041917,120]
[367012850,1750618033241,-2122.85864166,0.00041917,120]
[367012852,1750618033271,-976.07621444,0.00041917,120]
[367012854,1750618033301,-1045.50307645,0.00041917,120]
[367012857,1750618033332,-1509.30281599,0.00041917,120]
[367012859,1750618033363,-6290.53660181,0.00041917,120]
[367012861,1750618033393,-11222.73362679,0.00041917,120]
[367012863,1750618033423,-628.401658,0.00041917,120]
[367012866,1750618033452,-3776.22322574,0.00041917,120]
[367012868,1750618033487,-2112.27634111,0.00041917,120]
[367012870,1750618033518,-494.91804398,0.00041917,120]
[367012872,1750618033559,-9208.60032105,0.00041917,120]
[367012874,1750618033592,-1622.95579065,0.00041917,120]
[367012877,1750618033623,-3313.34906916,0.00041917,120]
[367012879,1750618033652,-502.42885786,0.00041917,120]
[367012881,1750618033683,-2146.18241445,0.00041917,120]
[367012883,1750618033714,-3991.79878059,0.00041917,120]
[367012885,1750618033745,-18400.84878829,0.00041917,120]
[367012886,1750618033776,-983.48049671,0.00041917,120]
[367012887,1750618033807,-625.46610198,0.00041917,120]
[367012888,1750618033838,-1583.74360712,0.00041917,120]
[367012889,1750618033868,-780.67061202,0.00041917,120]
[367012890,1750618033897,-708.65365026,0.00041917,120]
[367012891,1750618033924,-2109.30664276,0.00041917,120]
[367012892,1750618033952,-3737.84242073,0.00041917,120]
[367012894,1750618033981,-2795.70290259,0.00041917,120]
[367012895,1750618034011,-1172.654598,0.00041917,120]
[367012898,1750618034040,-878.33632117,0.00041917,120]
[367012899,1750618034071,-1246.48471893,0.00041917,120]
[367012902,1750618034100,-5298.59038289,0.00041917,120]
[367012904,1750618034130,-1983.31833039,0.00041917,120]
[367012906,1750618034160,-2093.55386808,0.00041917,120]
[367012908,1750618034190,-1397.11204355,0.00041917,120]
[367012911,1750618034221,-2126.50941862,0.00041917,120]
[367012913,1750618034253,-3812.63699433,0.00041917,120]
[367012915,1750618034284,-4625.88271513,0.00041917,120]
[367012917,1750618034317,-1629.38623227,0.00041917,120]
[367012919,1750618034349,-1861.93852935,0.00041917,120]
[367012921,1750618034380,-2150.19902428,0.00041917,120]
[367012923,1750618034412,-1197.99609717,0.00041917,120]
[367012926,1750618034442,-972.20458379,0.00041917,120]
[367012928,1750618034477,-1267.64803802,0.00041917,120]
[367012929,1750618034508,-713.46743831,0.00041917,120]
[367012931,1750618034541,-2321.42379596,0.00041917,120]
[367012933,1750618034572,-1144.66886001,0.00041917,120]
[367012935,1750618034603,-4146.70606737,0.00041917,120]
[367012937,1750618034633,-2677.28797483,0.00041917,120]
[367012939,1750618034665,-7966.22365553,0.00041917,120]
[367012942,1750618034696,-434.61439136,0.00041917,120]
[367012944,1750618034729,-1591.10634248,0.00041917,120]
[367012945,1750618034762,-968.64662331,0.00041917,120]
[367012947,1750618034797,-727.4020984,0.00041917,120]
[367012950,1750618034830,-4366.5191052,0.00041917,120]
[367012952,1750618034861,-1977.6315445,0.00041917,120]
[367012954,1750618034894,-1831.13282419,0.00041917,120]
[367012956,1750618034925,-545.91156588,0.00041917,120]
[367012958,1750618034956,-3473.13491662,0.00041917,120]
[367012960,1750618034986,-3132.87958413,0.00041917,120]
[367012962,1750618035016,-1027.25445585,0.00041917,120]
[367012964,1750618035046,-923.98284495,0.00041917,120]
[367012967,1750618035075,-5587.56941064,0.00041917,120]
[367012969,1750618035105,-7482.82935413,0.00041917,120]
[367012971,1750618035134,-4295.24112917,0.00041917,120]
[367012973,1750618035163,-1079.07666852,0.00041917,120]
[367012975,1750618035192,-1522.38960947,0.00041917,30]
[367012977,1750618035224,-824.44658181,0.00041917,120]
[367012980,1750618035255,-14168.63568839,0.00041917,120]
[367012982,1750618035286,-759.0590841,0.00041917,120]
[367012984,1750618035316,-1225.16409072,0.00041917,120]
[367012986,1750618035347,-1754.15017142,0.00041917,120]
[367012988,1750618035377,-26673.1709336,0.00041917,120]
[367012990,1750618035408,-828.08461389,0.00041917,120]
[367012992,1750618035439,-1616.30502502,0.00041917,120]
[367012993,1750618035470,-4976.26569522,0.00041917,120]
[367012996,1750618035503,-3209.00383721,0.00041917,120]
[367012998,1750618035536,-632.32075749,0.00041917,120]
[367013000,1750618035569,-5441.66388971,0.00041917,120]
[367013002,1750618035601,-9776.54511979,0.00041917,120]
[367013005,1750618035634,-564.81212525,0.00041917,120]
[367013007,1750618035666,-1229.57751734,0.00041917,120]
[367013009,1750618035698,-1314.91646088,0.00041917,120]
[367013011,1750618035730,-2826.45108691,0.00041917,120]
[367013020,1750618035914,-2420.06,0.00041917,120]
[367013022,1750618035947,-999.85538659,0.00041917,120]
[367013024,1750618035977,-832.29745607,0.00041917,120]
[367013026,1750618036008,-990.10225832,0.00041917,120]
[367013028,1750618036038,-614.79218117,0.00041917,120]
[367013031,1750618036069,-8662.9611173,0.00041917,120]
[367013033,1750618036099,-1684.89,0.00041917,120]
[367013035,1750618036131,-2051.64069887,0.00041917,120]
[367013037,1750618036159,-718.74,0.00041917,120]
[367013039,1750618036188,-1229.96117904,0.00041917,120]
[367013042,1750618036218,-1166.28482044,0.00041917,120]
[367013044,1750618036248,-1339.33838868,0.00041917,120]
[367013046,1750618036277,-1521.94344469,0.00041917,120]
[367013048,1750618036307,-3325.30065246,0.00041917,120]
[367013051,1750618036340,-2993.38091462,0.00041917,120]
[367013053,1750618036370,-2311.55589847,0.00041917,120]
[367013055,1750618036400,-3306.27428397,0.00041917,120]
[367013057,1750618036429,-3159.68829821,0.00041917,120]
[367013059,1750618036461,-891.3088852,0.00041917,120]
[367013060,1750618036491,-567.11780483,0.00041917,120]
[367013061,1750618036520,-4081.29650726,0.00041917,120]
[367013062,1750618036550,-1014.49191425,0.00041917,60]
[367013063,1750618036581,-2475.20538865,0.00041917,120]
[367013064,1750618036611,-1851.44563086,0.00041917,120]
[367013066,1750618036642,-1144.75711025,0.00041917,120]
[367013068,1750618036675,-19006.11089386,0.00041917,120]
[367013071,1750618036707,-2917.86873419,0.00041917,120]
[367013073,1750618036738,-444.58866343,0.00041917,120]
[367013075,1750618036770,-510.29639491,0.00041917,120]
[367013077,1750618036803,-1712.82850712,0.00041917,120]
[367013079,1750618036835,-2705.72053012,0.00041917,120]
[367013082,1750618036866,-3069.68483191,0.00041917,120]
[367013084,1750618036899,-4682.5437166,0.00041917,120]
[367013086,1750618036930,-778.02699481,0.00041917,120]
[367013088,1750618036960,-2706.20092326,0.00041917,120]
[367013091,1750618036992,-3867.26133678,0.00041917,120]
[367013093,1750618037025,-742.78396063,0.00041917,120]
[367013095,1750618037057,-829.96436776,0.00041917,120]
[367013097,1750618037087,-5823.76697653,0.00041917,120]
[367013099,1750618037119,-490.83784306,0.00041917,120]
[367013102,1750618037151,-717.31929528,0.00041917,120]
[367013104,1750618037185,-1565.45614742,0.00041917,120]
[367013106,1750618037218,-6164.01686082,0.00041917,120]
[367013108,1750618037249,-3771.69056405,0.00041917,120]
[367013110,1750618037281,-2514.52091054,0.00041917,120]
[367013113,1750618037312,-2422.3948172,0.00041917,120]
[367013115,1750618037347,-1720.97,0.00041917,120]
[367013117,1750618037379,-3852.09971869,0.00041917,120]
[367013119,1750618037414,-1669.90884034,0.00041917,120]
[367013122,1750618037447,-2199.59113902,0.00041917,120]
[367013124,1750618037483,-581.50930453,0.00041917,120]
[367013126,1750618037515,-1534.01496192,0.00041917,120]
[367013128,1750618037547,-2531.80229392,0.00041917,120]
[367013130,1750618037578,-899.20617728,0.00041917,120]
[367013133,1750618037612,-1236.93456391,0.00041917,120]
[367013135,1750618037644,-3110.15639012,0.00041917,120]
[367013137,1750618037677,-1677.05579237,0.00041917,120]
[367013139,1750618037709,-597.41938713,0.00041917,120]
[367013142,1750618037744,-742.7938882,0.00041917,120]
[367013144,1750618037776,-4224.92854805,0.00041917,120]
[367013146,1750618037809,-825.06,0.00041917,120]
[367013148,1750618037842,-952.13467427,0.00041917,120]
[367013151,1750618037873,-597.38487271,0.00041917,120]
[367013153,1750618037906,-3369.80319217,0.00041917,120]
[367013155,1750618037936,-1199.2203154,0.00041917,120]
[367013157,1750618037968,-8123.92780785,0.00041917,120]
[367013160,1750618037999,-5155.48924838,0.00041917,120]
[367013162,1750618038029,-984.13984026,0.00041917,120]
[367013164,1750618038059,-806.4986739,0.00041917,120]
[367013166,1750618038090,-855.64449078,0.00041917,120]
[367013168,1750618038122,-1415.43282463,0.00041917,120]
[367013171,1750618038152,-2967.94538438,0.00041917,120]
[367013173,1750618038183,-1050.42790732,0.00041917,120]
[367013175,1750618038216,-1517.40338984,0.00041917,120]
[367013177,1750618038247,-1950.94039439,0.00041917,120]
[367013179,1750618038280,-8263.72668871,0.00041917,120]
[367013181,1750618038313,-2191.80292921,0.00041917,120]
[367013183,1750618038344,-4044.04005924,0.00041917,120]
[367013185,1750618038375,-600.88182346,0.00041917,120]
[367013188,1750618038408,-1762.65898345,0.00041917,120]
[367013190,1750618038440,-1851.02729931,0.00041917,120]
[367013192,1750618038474,-2925.85987457,0.00041917,120]
[367013194,1750618038508,-754.65,0.00041917,120]
[367013196,1750618038540,-2846.23392592,0.00041917,120]
[367013198,1750618038574,-1698.44720753,0.00041917,120]
[367013200,1750618038607,-2653.36319191,0.00041917,120]
[367013202,1750618038641,-1492.85479014,0.00041917,120]
[367013204,1750618038676,-2511.08049743,0.00041917,120]
[367013206,1750618038709,-11566.23627137,0.00041917,120]
[367013222,1750618039109,-1103.86331545,0.00041917,120]
[367013224,1750618039145,-1235.40452488,0.00041917,120]
[367013226,1750618039180,-1973.52912081,0.00041917,120]
[367013227,1750618039212,-618.02190277,0.00041917,120]
[367013228,1750618039246,-6625.57069694,0.00041917,120]
[367013229,1750618039278,-974.3768347,0.00041917,120]
[367013230,1750618039309,-1476.32347364,0.00041917,120]
[367013232,1750618039343,-738.54638092,0.00041917,120]
[367013234,1750618039374,-3780.99607705,0.00041917,120]
[367013236,1750618039406,-605.03282965,0.00041917,120]
[367013238,1750618039437,-799.32689968,0.00041917,120]
[367013241,1750618039471,-4233.6900267,0.00041917,120]
[367013243,1750618039504,-578.75369663,0.00041988,30]
[367013245,1750618039535,-1000.0,0.0004199,120]
[367013247,1750618039571,-50000.0,0.00042,42]
[367013250,1750618039604,-1100.0,0.00042,120]
[367013252,1750618039639,-168.5318807,0.00042,120]
[367013254,1750618039672,-553.28025565,0.00042,60]
[367013256,1750618039705,-755.81858544,0.00042,120]
[367013259,1750618039738,-494.13631749,0.00042,30]
[367013261,1750618039770,-391.54650111,0.00042,30]
[367013263,1750618039801,-3519.99296429,0.00042,120]
[367013265,1750618039834,-1000.0,0.00042,120]
[367013268,1750618039866,-1500.0,0.00042,120]
[367013270,1750618039896,-580.0,0.00042,120]
[367013272,1750618039927,-14768.23003226,0.00042,30]
[367014393,1750618102996,-208.70399388,0.00037567,37]
[367014402,1750618103189,-9209.59,0.0003935,30]
[367014406,1750618103265,-4853.0,0.00039927,117]
[367014408,1750618103299,-500.0,0.00039999,31]
[367014410,1750618103333,-500.0,0.00039999,31]
[367014412,1750618103366,-500.0,0.00039999,31]
[367014414,1750618103401,-500.0,0.00039999,31]
[367014417,1750618103432,-500.0,0.00039999,31]
[367014419,1750618103465,-500.0,0.00039999,31]
[367014421,1750618103501,-500.0,0.00039999,31]
[367014423,1750618103534,-500.0,0.00039999,31]
[367014425,1750618103570,-500.0,0.00039999,31]
[367014426,1750618103603,-500.0,0.00039999,31]
[367014427,1750618103634,-500.0,0.00039999,31]
[367014428,1750618103667,-500.0,0.00039999,31]
[367014429,1750618103701,-500.0,0.00039999,31]
[367014431,1750618103734,-500.0,0.00039999,31]
[367014433,1750618103769,-500.0,0.00039999,31]
[367014435,1750618103802,-500.0,0.00039999,31]
[367014437,1750618103835,-500.0,0.00039999,31]
[367014439,1750618103870,-500.0,0.00039999,31]
[367014446,1750618104024,-500.0,0.00039999,31]
[367014448,1750618104059,-500.0,0.00039999,31]
[367014451,1750618104094,-500.0,0.00039999,31]
[367014453,1750618104130,-500.0,0.00039999,31]
[367014455,1750618104164,-500.0,0.00039999,31]
[367014457,1750618104198,-500.0,0.00039999,31]
[367014459,1750618104231,-500.0,0.00039999,31]
[367014462,1750618104263,-178.02716155,0.00039999,31]
[367014464,1750618104295,-500.0,0.00039999,31]
[367014466,1750618104328,-550.0,0.00039999,31]
[367014469,1750618104384,-153.0,0.00040023,60]
[367014471,1750618104416,-153.0,0.00040024,60]
[367014473,1750618104448,-153.0,0.00040024,60]
[367014475,1750618104483,-153.0,0.00040024,60]
[367014478,1750618104514,-153.0,0.00040024,60]
[367014480,1750618104549,-153.0,0.00040024,60]
[367014482,1750618104582,-153.0,0.00040024,60]
[367014484,1750618104613,-153.0,0.00040024,60]
[367014486,1750618104645,-153.0,0.00040024,60]
[367014488,1750618104677,-153.0,0.00040024,60]
[367014490,1750618104709,-153.0,0.00040024,60]
[367014493,1750618104743,-153.0,0.00040024,60]
[367014495,1750618104775,-153.0,0.00040024,60]
[367014497,1750618104807,-153.0,0.00040024,60]
[367014499,1750618104838,-153.0,0.00040026,60]
[367014501,1750618104869,-153.0,0.00040028,60]
[367014503,1750618104904,-153.0,0.00040028,60]
[367014506,1750618104937,-153.0,0.00040028,60]
[367014508,1750618104969,-153.0,0.00040028,60]
[367014510,1750618105002,-153.0,0.00040028,60]
[367014512,1750618105034,-153.0,0.00040028,60]
[367014514,1750618105067,-153.0,0.00040028,60]
[367014517,1750618105100,-153.0,0.00040028,60]
[367014519,1750618105130,-153.0,0.00040028,60]
[367014521,1750618105162,-153.0,0.00040028,60]
[367014523,1750618105196,-153.0,0.00040028,60]
[367014525,1750618105229,-153.0,0.00040028,60]
[367014530,1750618105319,-160.0,0.00041,90]
[367014532,1750618105352,-500.0,0.00041094,30]
[367014534,1750618105384,-151.0,0.00041094,30]
[367014536,1750618105416,-151.0,0.00041094,30]
[367014538,1750618105449,-500.0,0.00041094,30]
[367014541,1750618105483,-151.0,0.00041094,30]
[367014543,1750618105519,-151.0,0.00041094,30]
[367014545,1750618105553,-500.0,0.00041094,30]
[367014547,1750618105587,-151.0,0.00041094,30]
[367014549,1750618105620,-151.0,0.00041094,30]
[367014551,1750618105656,-500.0,0.00041094,30]
[367014553,1750618105690,-151.0,0.00041094,30]
[367014556,1750618105723,-151.0,0.00041094,30]
[367014558,1750618105756,-500.0,0.00041094,30]
[367014560,1750618105791,-151.0,0.00041094,30]
[367014562,1750618105826,-151.0,0.00041094,30]
[367014564,1750618105859,-151.0,0.00041094,30]
[367014566,1750618105891,-218.0,0.00041094,30]
[367014568,1750618105923,-151.0,0.00041094,30]
[367014571,1750618105955,-151.0,0.00041094,30]
[367014573,1750618105986,-151.0,0.00041094,30]
[367014575,1750618106016,-151.0,0.00041094,30]
[367014577,1750618106046,-151.0,0.00041094,30]
[367014579,1750618106077,-151.0,0.00041094,30]
[367014581,1750618106106,-151.0,0.00041094,30]
[367014583,1750618106136,-151.0,0.00041094,30]
[367014585,1750618106166,-151.0,0.00041094,30]
[367014586,1750618106198,-151.0,0.00041094,30]
[367014587,1750618106230,-151.0,0.00041094,30]
[367014588,1750618106262,-151.0,0.00041094,30]
[367014589,1750618106293,-151.0,0.00041094,30]
[367014591,1750618106323,-151.0,0.00041094,30]
[367014593,1750618106356,-760.69,0.00041095,120]
[367014595,1750618106387,-3387.38,0.00041095,120]
[367014597,1750618106418,-1041.59,0.00041095,120]
[367014599,1750618106448,-1114.56,0.00041095,120]
[367014601,1750618106483,-2822.49,0.00041095,60]
[367014603,1750618106515,-761.71,0.00041095,120]
[367014605,1750618106547,-4479.16,0.00041095,120]
[367014607,1750618106581,-1945.29,0.00041095,120]
[367014609,1750618106613,-1154.48,0.00041095,120]
[367014612,1750618106645,-1595.65,0.00041095,120]
[367014614,1750618106677,-14380.63,0.00041095,120]
[367014616,1750618106712,-13515.15,0.00041095,120]
[367014618,1750618106745,-932.02,0.00041095,120]
[367014620,1750618106778,-590.45677066,0.00041095,120]
[367014622,1750618106811,-866.1,0.00041095,120]
[367014624,1750618106844,-536.14,0.00041095,120]
[367014627,1750618106879,-490.0,0.00041095,120]
[367014629,1750618106912,-490.0,0.00041095,120]
[367014631,1750618106945,-3375.57,0.00041095,120]
[367014633,1750618106979,-2189.67,0.00041095,120]
[367014635,1750618107015,-2234.78,0.00041095,120]
[367014638,1750618107046,-662.93,0.00041095,120]
[367014640,1750618107077,-4831.19,0.00041095,120]
[367014642,1750618107110,-4320.58,0.00041095,120]
[367014644,1750618107143,-1941.95,0.00041095,120]
[367014647,1750618107175,-2665.32,0.00041095,120]
[367014649,1750618107207,-17029.43,0.00041095,118]
[367014651,1750618107238,-2561.68,0.00041095,120]
[367014653,1750618107270,-5825.68,0.00041095,120]
[367014655,1750618107301,-2953.89,0.00041095,120]
[367014658,1750618107333,-1217.6,0.00041095,120]
[367014660,1750618107367,-7904.88,0.00041095,120]
[367014662,1750618107402,-3220.24,0.00041095,120]
[367014664,1750618107437,-4340.87,0.00041095,120]
[367014667,1750618107471,-15838.31,0.00041095,120]
[367014669,1750618107508,-5924.01,0.00041095,120]
[367014671,1750618107543,-1427.25,0.00041095,120]
[367014673,1750618107577,-2210.98,0.00041095,120]
[367014676,1750618107611,-2597.68,0.00041095,120]
[367014678,1750618107646,-535.89,0.00041095,120]
[367014680,1750618107681,-3369.96,0.00041095,120]
[367014682,1750618107716,-718.25,0.00041095,120]
[367014684,1750618107750,-4146.8,0.00041095,120]
[367014686,1750618107783,-1996.18,0.00041095,120]
[367014689,1750618107817,-1427.21,0.00041095,120]
[367014691,1750618107847,-1298.45,0.00041095,120]